fUSD/lending_fUSD_20240909
["ID","MTS","AMOUNT","RATE_DAILY","PERIOD"]
[337604010,1725889868463,-3661.01,0.00014794,2]
[337604011,1725889868473,-569.73,0.00014794,2]
[337604012,1725889868483,-820.39,0.00014794,2]
[337604013,1725889868492,-500.0,0.00014794,2]
[337604014,1725889868501,-3322.04,0.00014794,2]
[337604015,1725889868511,-569.73,0.00014794,2]
[337604016,1725889868521,-3661.01,0.00014794,2]
[337604017,1725889868534,-820.39,0.00014794,2]
[337604018,1725889868545,-500.0,0.00014794,2]
[337604019,1725889868555,-3322.04,0.00014794,2]
[337604020,1725889868565,-569.87119066,0.00014794,2]
[337604021,1725889868575,-3661.01,0.00014794,2]
[337604022,1725889868592,-820.39,0.00014794,2]
[337604023,1725889868613,-500.0,0.00014794,2]
[337604024,1725889868634,-500.0,0.00014794,2]
[337604025,1725889868655,-3322.04,0.00014794,2]
[337604026,1725889868675,-3661.01,0.00014794,2]
[337604027,1725889868697,-820.39,0.00014794,2]
[337604028,1725889868719,-500.0,0.00014794,2]
[337604029,1725889868739,-500.0,0.00014794,2]
[337604030,1725889868761,-1020.17316693,0.00014794,2]
[337604031,1725889869068,-690.60504577,0.00014794,2]
[337604032,1725889869094,-1611.2617873,0.00014794,2]
[337604033,1725889869115,-43.84734228,0.00014794,2]
[337604034,1725889869139,-789.18618,0.00014794,2]
[337604035,1725889869180,-270.462826,0.00014794,2]
[337604036,1725889869191,-1748.9835148,0.00014794,2]
[337604037,1725889869203,-808.53013692,0.00014794,2]
[337604038,1725889869218,-820.39,0.00014794,2]
[337604039,1725889869232,-500.0,0.00014794,2]
[337604040,1725889869241,-2377.14244929,0.00014794,2]
[337604041,1725889888809,500.0,9.862e-05,2]
[337604042,1725889924824,1064.94,0.000279,120]
[337604043,1725889926806,500.0,0.00010958,2]
[337604044,1725890002037,350.51,0.00011866,2]
[337604045,1725890099079,500.0,0.00010958,2]
[337604046,1725890121331,500.0,0.00010958,2]
[337604047,1725890252100,488.64,0.00010959,2]
[337604048,1725890367212,-500.0,0.00012602,2]
[337604049,1725890367236,-187.456,0.00012799,2]
[337604050,1725890367256,-12213.6403,0.000129,2]
[337604051,1725890367277,-150.0,0.00012998,2]
[337604052,1725890367298,-3000.0,0.00012999,2]
[337604053,1725890367317,-3000.0,0.00012999,2]
[337604054,1725890367337,-3000.0,0.00012999,2]
[337604055,1725890367357,-3000.0,0.00012999,2]
[337604056,1725890367377,-3000.0,0.00012999,2]
[337604057,1725890367401,-3000.0,0.00012999,2]
[337604058,1725890367421,-3000.0,0.00012999,2]
[337604059,1725890367441,-3000.0,0.00012999,2]
[337604060,1725890367461,-3000.0,0.00012999,2]
[337604061,1725890367482,-3000.0,0.00012999,2]
[337604062,1725890367502,-1948.9037,0.00012999,2]
[337604063,1725890398346,500.0,0.00010958,2]
[337604074,1725890769049,257.76478457,0.00011,10]
[337604075,1725890801267,662.97,0.00011522,2]
[337604120,1725891032275,-528.65627942,0.00012899,2]
[337604122,1725891032284,-27.76372058,0.00013,2]
[337604125,1725891032306,-436.64173545,0.00013,2]
[337604139,1725891032662,-123.41454397,0.00013,2]
[337604140,1725891032673,-1843.4793,0.00013149,2]
[337604141,1725891032682,-354.50471252,0.00013201,2]
[337604142,1725891032693,-575.21328161,0.00013201,2]
[337604143,1725891032712,-4929.28200587,0.00013201,2]
[337604144,1725891032721,-150.0,0.00013201,2]
[337604145,1725891032731,-1145.0,0.00013201,2]
[337604146,1725891032740,-150.0,0.00013348,2]
[337604147,1725891032749,-1547.0,0.00013349,2]
[337604148,1725891032759,-1261.0,0.00013349,2]
[337604149,1725891032768,-624.0,0.00013349,2]
[337604150,1725891032777,-147.02370219,0.00013349,2]
[337604155,1725891037996,-1079.0,0.00013201,2]
[337604156,1725891038006,-299.97629781,0.00013349,2]
[337604157,1725891038016,-150.0,0.00013349,2]
[337604158,1725891038025,-557.0,0.00013349,2]
[337604159,1725891038035,-811.0,0.00013349,2]
[337604160,1725891038044,-693.608,0.00013349,2]
[337604161,1725891038053,-1900.0,0.00013349,2]
[337604162,1725891038063,-552.0,0.00013349,2]
[337604163,1725891038073,-3343.0,0.00013349,2]
[337604164,1725891038083,-1119.0,0.00013349,2]
[337604165,1725891038093,-805.0,0.00013349,2]
[337604166,1725891038103,-248.0,0.00013349,2]
[337604167,1725891038113,-1921.0,0.00013349,2]
[337604168,1725891038123,-250.0,0.00013445,2]
[337604169,1725891038132,-175.06,0.00013445,2]
[337604170,1725891038143,-200.0,0.00013446,2]
[337604171,1725891038152,-250.0,0.00013446,2]
[337604172,1725891038162,-250.0,0.00013446,2]
[337604173,1725891038172,-199.42,0.00013447,2]
[337604174,1725891038182,-500.0,0.00013456,2]
[337604175,1725891038191,-499.99,0.00013464,2]
[337604176,1725891038201,-3695.49,0.00013465,2]
[337604177,1725891038210,-16511.53,0.00013468,2]
[337604178,1725891038222,-600.0,0.00013491,2]
[337604179,1725891038232,-167.34,0.00013595,2]
[337604180,1725891038241,-500.0,0.00013698,2]
[337604181,1725891038251,-500.0,0.00013698,2]
[337604182,1725891038260,-500.0,0.00013698,2]
[337604183,1725891038270,-179.2,0.00013699,2]
[337604184,1725891038280,-200.0,0.00013699,2]
[337604185,1725891038290,-2751.0,0.00013699,2]
[337604187,1725891038300,-166.09,0.00013699,2]
[337604188,1725891038310,-662.97,0.00013786,2]
[337604190,1725891038320,-400.0,0.00013865,2]
[337604192,1725891038330,-1000.0,0.000139,2]
[337604194,1725891038341,-359.0,0.000139,2]
[337604196,1725891038350,-150.0,0.00014,2]
[337604198,1725891038360,-255.25,0.00014119,2]
[337604200,1725891038370,-806.35,0.00014192,2]
[337604202,1725891038380,-357.17,0.00014192,2]
[337604204,1725891038390,-152.0,0.00014197,3]
[337604206,1725891038400,-500.0,0.00014286,2]
[337604208,1725891038410,-500.0,0.00014295,2]
[337604210,1725891038420,-500.0,0.00014304,2]
[337604212,1725891038430,-500.0,0.00014313,2]
[337604213,1725891038439,-500.0,0.00014322,2]
[337604215,1725891038448,-500.0,0.0001433,2]
[337604217,1725891038458,-500.0,0.00014339,2]
[337604219,1725891038471,-704.14,0.00014348,2]
[337604221,1725891038480,-226.826,0.00014348,2]
[337604223,1725891038490,-500.0,0.00014348,2]
[337604225,1725891038500,-500.0,0.00014357,2]
[337604227,1725891038510,-500.0,0.00014366,2]
[337604229,1725891038520,-159.78878131,0.00014374,2]
[337604231,1725891038532,-340.21121869,0.00014374,2]
[337604233,1725891038542,-500.0,0.00014383,2]
[337604234,1725891038553,-500.0,0.00014392,2]
[337604236,1725891038563,-6460.3544,0.00014394,2]
[337604238,1725891038573,-500.0,0.00014401,2]
[337604240,1725891038583,-500.0,0.0001441,2]
[337604242,1725891038593,-500.0,0.00014418,2]
[337604244,1725891038603,-500.0,0.00014427,2]
[337604246,1725891038613,-500.0,0.00014436,2]
[337604248,1725891038623,-1191.04,0.00014437,6]
[337604250,1725891038636,-500.0,0.00014445,2]
[337604253,1725891038647,-500.0,0.00014454,2]
[337604254,1725891038656,-255.0,0.00014456,2]
[337604256,1725891038665,-500.0,0.00014462,2]
[337604258,1725891038675,-500.0,0.00014471,2]
[337604260,1725891038686,-500.0,0.0001448,2]
[337604262,1725891038696,-500.0,0.00014489,2]
[337604264,1725891038708,-4743.26337414,0.00014494,2]
[337604269,1725891038749,-1006.65319997,0.00014494,2]
[337604271,1725891038761,-13739.95452589,0.00014494,2]
[337604273,1725891038771,-500.0,0.00014498,2]
[337604275,1725891038782,-1097.94473538,0.00014498,2]
[337604277,1725891038791,-998.28346795,0.00014498,2]
[337604279,1725891038801,-500.0,0.00014506,2]
[337604281,1725891038810,-3230.34004079,0.00014519,2]
[337604283,1725891038822,-3192.26079,0.00014519,2]
[337604396,1725891040048,-466.4427524,0.00014519,2]
[337604397,1725891040060,-4545.84972688,0.00014519,2]
[337604398,1725891040076,-8135.35178993,0.00014519,2]
[337604399,1725891040085,-306.413016,0.00014521,2]
[337604400,1725891040094,-150.0,0.00014522,2]
[337604401,1725891040104,-150.0,0.00014523,2]
[337604402,1725891040113,-150.0,0.00014528,2]
[337604403,1725891040122,-150.0,0.00014531,2]
[337604404,1725891040131,-150.0,0.00014539,2]
[337604406,1725891040141,-150.0,0.00014539,2]
[337604408,1725891040150,-150.0,0.00014542,2]
[337604410,1725891040159,-150.0,0.00014554,2]
[337604412,1725891040169,-150.0,0.00014554,2]
[337604414,1725891040178,-150.0,0.00014557,2]
[337604416,1725891040188,-150.0,0.00014559,2]
[337604418,1725891040197,-150.0,0.00014574,2]
[337604420,1725891040206,-150.0,0.00014575,2]
[337604421,1725891040217,-150.0,0.00014577,2]
[337604423,1725891040227,-487.03368496,0.00014583,2]
[337604425,1725891040236,-150.0,0.0001459,2]
[337604427,1725891040246,-150.0,0.00014604,2]
[337604429,1725891040255,-150.0,0.00014605,2]
[337604431,1725891040264,-150.0,0.00014614,2]
[337604433,1725891040273,-150.0,0.00014617,2]
[337604435,1725891040283,-150.0,0.00014618,2]
[337604473,1725891040652,-150.0,0.00014628,2]
[337604475,1725891040672,-150.0,0.00014634,2]
[337604477,1725891040681,-150.0,0.00014635,2]
[337604479,1725891040691,-150.0,0.00014641,2]
[337604481,1725891040700,-1152.79249,0.0001465,2]
[337604483,1725891040708,-150.0,0.0001467,2]
[337604485,1725891040718,-150.0,0.00014681,2]
[337604487,1725891040728,-150.0,0.00014682,2]
[337604489,1725891040737,-1257.5934,0.00014684,2]
[337604491,1725891040746,-150.0,0.00014686,2]
[337604492,1725891040755,-428.25811656,0.00014689,2]
[337604494,1725891040764,-428.25811652,0.0001469,2]
[337604496,1725891040773,-428.25811652,0.0001469,2]
[337604498,1725891040782,-428.25811652,0.00014691,2]
[337604500,1725891040791,-428.25811652,0.00014691,2]
[337604502,1725891040799,-428.25811652,0.00014692,2]
[337604504,1725891040808,-428.25811652,0.00014692,2]
[337604506,1725891040817,-428.25811652,0.00014693,2]
[337604508,1725891040826,-428.25811652,0.00014693,2]
[337604510,1725891040835,-172.8445,0.00014694,2]
[337604512,1725891040844,-1391.9473,0.00014694,2]
[337604513,1725891040854,-428.25811652,0.00014694,2]
[337604515,1725891040863,-906.19821635,0.00014694,2]
[337604517,1725891040873,-8500.0,0.000147,2]
[337604519,1725891040882,-150.0,0.00014705,2]
[337604521,1725891040891,-150.0,0.00014712,2]
[337604523,1725891040901,-150.0,0.00014715,2]
[337604525,1725891040910,-150.0,0.00014722,2]
[337604527,1725891040919,-150.0,0.00014732,2]
[337604529,1725891040927,-150.0,0.00014733,2]
[337604531,1725891040937,-150.0,0.00014738,2]
[337604533,1725891040946,-150.0,0.00014739,2]
[337604535,1725891040955,-150.0,0.00014744,2]
[337604537,1725891040964,-150.0,0.00014746,2]
[337604539,1725891040974,-420.66956482,0.00014755,2]
[337604541,1725891040983,-150.0,0.00014764,2]
[337604543,1725891040992,-150.0,0.00014771,2]
[337604545,1725891041001,-500.0,0.00014773,2]
[337604547,1725891041010,-150.0,0.00014774,2]
[337604549,1725891041019,-150.0,0.00014777,2]
[337604550,1725891041028,-1545.9300944,0.00014789,2]
[337604552,1725891041037,-150.0,0.00014789,2]
[337604554,1725891041047,-213.33630603,0.00014793,2]
[337604556,1725891041056,-150.01,0.00014793,2]
[337604558,1725891041065,-150.0,0.00014793,2]
[337604560,1725891041075,-973.0,0.00014794,2]
[337604562,1725891041084,-608952.50844893,0.00014794,2]
[337604564,1725891041093,-151.0,0.00014794,2]
[337604566,1725891041102,-151.0,0.00014794,2]
[337604568,1725891041112,-151.0,0.00014794,2]
[337604570,1725891041121,-151.0,0.00014794,2]
[337604572,1725891041131,-151.0,0.00014794,2]
[337604574,1725891041140,-151.0,0.00014794,2]
[337604576,1725891041150,-151.0,0.00014794,2]
[337604578,1725891041160,-151.0,0.00014794,2]
[337604580,1725891041169,-151.0,0.00014794,2]
[337604582,1725891041178,-151.0,0.00014794,2]
[337604584,1725891041187,-151.0,0.00014794,2]
[337604586,1725891041196,-151.0,0.00014794,2]
[337604588,1725891041205,-151.0,0.00014794,2]
[337604590,1725891041214,-151.0,0.00014794,2]
[337604592,1725891041225,-151.0,0.00014794,2]
[337604594,1725891041235,-151.0,0.00014794,2]
[337604596,1725891041244,-151.0,0.00014794,2]
[337604597,1725891041253,-151.0,0.00014794,2]
[337604599,1725891041263,-151.0,0.00014794,2]
[337604601,1725891041272,-151.0,0.00014794,2]
[337604603,1725891041281,-234.953461,0.00014794,2]
[337604605,1725891041290,-151.0,0.00014794,2]
[337604607,1725891041299,-205.350169,0.00014794,2]
[337604609,1725891041309,-151.0,0.00014794,2]
[337604611,1725891041318,-151.0,0.00014794,2]
[337604613,1725891041327,-151.0,0.00014794,2]
[337604615,1725891041337,-151.0,0.00014794,2]
[337604617,1725891041346,-151.0,0.00014794,2]
[337604619,1725891041356,-151.0,0.00014794,2]
[337604621,1725891041365,-204.120595,0.00014794,2]
[337604623,1725891041374,-500.0,0.00014794,2]
[337604625,1725891041384,-500.0,0.00014794,2]
[337604627,1725891041394,-500.0,0.00014794,2]
[337604629,1725891041403,-500.0,0.00014794,2]
[337604631,1725891041412,-500.0,0.00014794,2]
[337604633,1725891041421,-500.0,0.00014794,2]
[337604635,1725891041430,-500.0,0.00014794,2]
[337604636,1725891041439,-500.0,0.00014794,2]
[337604638,1725891041448,-500.0,0.00014794,2]
[337604640,1725891041457,-500.0,0.00014794,2]
[337604642,1725891041466,-500.0,0.00014794,2]
[337604644,1725891041476,-500.0,0.00014794,2]
[337604646,1725891041485,-500.0,0.00014794,2]
[337604648,1725891041494,-500.0,0.00014794,2]
[337604650,1725891041503,-500.0,0.00014794,2]
[337604652,1725891041513,-500.0,0.00014794,2]
[337604654,1725891041522,-263.67223706,0.00014794,2]
[337604656,1725891041531,-500.0,0.00014794,2]
[337604658,1725891041541,-500.0,0.00014794,2]
[337604660,1725891041550,-500.0,0.00014794,2]
[337604662,1725891041562,-500.0,0.00014794,2]
[337604663,1725891041572,-500.0,0.00014794,2]
[337604665,1725891041581,-500.0,0.00014794,2]
[337604667,1725891041590,-280.89770387,0.00014794,2]
[337604669,1725891041600,-500.0,0.00014794,2]
[337604671,1725891041610,-500.0,0.00014794,2]
[337604673,1725891041619,-500.0,0.00014794,2]
[337604675,1725891041630,-500.0,0.00014794,2]
[337604677,1725891041639,-500.0,0.00014794,2]
[337604679,1725891041648,-500.0,0.00014794,2]
[337604681,1725891041657,-528.70058362,0.00014794,2]
[337604683,1725891041667,-204.36612,0.00014794,2]
[337604685,1725891041676,-290.465355,0.00014794,2]
[337604687,1725891041685,-500.0,0.00014794,2]
[337604689,1725891041695,-500.0,0.00014794,2]
[337604691,1725891041704,-500.0,0.00014794,2]
[337604693,1725891041714,-500.0,0.00014794,2]
[337604695,1725891041724,-500.0,0.00014794,2]
[337604697,1725891041733,-500.0,0.00014794,2]
[337604699,1725891041743,-198.002255,0.00014794,2]
[337604701,1725891041752,-500.0,0.00014794,2]
[337604703,1725891041761,-198.002255,0.00014794,2]
[337604705,1725891041770,-500.0,0.00014794,2]
[337604707,1725891041779,-198.002255,0.00014794,2]
[337604709,1725891041788,-198.002255,0.00014794,2]
[337604711,1725891041797,-500.0,0.00014794,2]
[337604713,1725891041807,-500.0,0.00014794,2]
[337604715,1725891041816,-198.002255,0.00014794,2]
[337604717,1725891041825,-500.0,0.00014794,2]
[337604718,1725891041834,-500.0,0.00014794,2]
[337604720,1725891041843,-198.002255,0.00014794,2]
[337604722,1725891041852,-500.0,0.00014794,2]
[337604724,1725891041861,-500.0,0.00014794,2]
[337604726,1725891041871,-198.002255,0.00014794,2]
[337604728,1725891041879,-500.0,0.00014794,2]
[337604730,1725891041889,-198.002255,0.00014794,2]
[337604732,1725891041898,-198.002255,0.00014794,2]
[337604734,1725891041907,-198.002255,0.00014794,2]
[337604736,1725891041916,-198.002255,0.00014794,2]
[337604738,1725891041926,-198.002255,0.00014794,2]
[337604740,1725891041935,-198.002255,0.00014794,2]
[337604742,1725891041944,-500.0,0.00014794,2]
[337604744,1725891041953,-500.0,0.00014794,2]
[337604746,1725891041962,-198.002255,0.00014794,2]
[337604748,1725891041972,-500.0,0.00014794,2]
[337604750,1725891041982,-254.30978672,0.00014794,2]
[337604752,1725891041991,-198.002255,0.00014794,2]
[337604754,1725891042000,-198.002255,0.00014794,2]
[337604756,1725891042013,-198.002255,0.00014794,2]
[337604758,1725891042022,-198.002255,0.00014794,2]
[337604760,1725891042032,-198.002255,0.00014794,2]
[337604762,1725891042041,-198.002252,0.00014794,2]
[337604764,1725891042050,-500.0,0.00014794,2]
[337604766,1725891042060,-500.0,0.00014794,2]
[337604768,1725891042070,-500.0,0.00014794,2]
[337604770,1725891042080,-500.0,0.00014794,2]
[337604772,1725891042089,-813.76,0.00014794,2]
[337604774,1725891042099,-500.0,0.00014794,2]
[337604776,1725891042108,-813.76,0.00014794,2]
[337604778,1725891042118,-589.55836266,0.00014794,2]
[337604780,1725891042127,-813.76,0.00014794,2]
[337604782,1725891042136,-813.76,0.00014794,2]
[337604784,1725891042145,-813.76,0.00014794,2]
[337604786,1725891042155,-813.76,0.00014794,2]
[337604788,1725891042164,-813.76,0.00014794,2]
[337604790,1725891042173,-813.76,0.00014794,2]
[337604792,1725891042182,-813.76,0.00014794,2]
[337604794,1725891042192,-813.76,0.00014794,2]
[337604796,1725891042201,-813.76,0.00014794,2]
[337604798,1725891042210,-813.76,0.00014794,2]
[337604800,1725891042219,-813.76,0.00014794,2]
[337604802,1725891042228,-813.76,0.00014794,2]
[337604804,1725891042238,-813.76,0.00014794,2]
[337604806,1725891042248,-813.76,0.00014794,2]
[337604807,1725891042257,-813.76,0.00014794,2]
[337604809,1725891042267,-813.76,0.00014794,2]
[337604811,1725891042276,-813.76,0.00014794,2]
[337604813,1725891042286,-813.76,0.00014794,2]
[337604815,1725891042295,-813.76,0.00014794,2]
[337604817,1725891042304,-813.76,0.00014794,2]
[337604819,1725891042314,-813.76,0.00014794,2]
[337604821,1725891042323,-813.92897326,0.00014794,2]
[337604823,1725891042332,-500.0,0.00014794,2]
[337604825,1725891042342,-500.0,0.00014794,2]
[337604827,1725891042351,-500.0,0.00014794,2]
[337604829,1725891042360,-500.0,0.00014794,2]
[337604831,1725891042370,-500.0,0.00014794,2]
[337604833,1725891042379,-500.0,0.00014794,2]
[337604835,1725891042389,-500.0,0.00014794,2]
[337604837,1725891042398,-500.0,0.00014794,2]
[337604839,1725891042408,-500.0,0.00014794,2]
[337604841,1725891042418,-500.0,0.00014794,2]
[337604843,1725891042427,-500.0,0.00014794,2]
[337604845,1725891042437,-500.0,0.00014794,2]
[337604847,1725891042447,-500.0,0.00014794,2]
[337604849,1725891042457,-500.0,0.00014794,2]
[337604851,1725891042466,-500.0,0.00014794,2]
[337604852,1725891042478,-500.0,0.00014794,2]
[337604854,1725891042488,-500.0,0.00014794,2]
[337604856,1725891042497,-500.0,0.00014794,2]
[337604858,1725891042506,-500.0,0.00014794,2]
[337604860,1725891042516,-500.0,0.00014794,2]
[337604862,1725891042526,-500.0,0.00014794,2]
[337604864,1725891042536,-500.0,0.00014794,2]
[337604866,1725891042546,-500.0,0.00014794,2]
[337604868,1725891042559,-500.0,0.00014794,2]
[337604870,1725891042568,-500.0,0.00014794,2]
[337604872,1725891042579,-500.0,0.00014794,2]
[337604874,1725891042588,-500.0,0.00014794,2]
[337604876,1725891042599,-214.8772492,0.00014794,2]
[337604878,1725891042608,-500.0,0.00014794,2]
[337604881,1725891042617,-500.0,0.00014794,2]
[337604883,1725891042627,-500.0,0.00014794,2]
[337604885,1725891042638,-500.0,0.00014794,2]
[337604888,1725891042648,-500.0,0.00014794,2]
[337604891,1725891042658,-500.0,0.00014794,2]
[337604894,1725891042667,-500.0,0.00014794,2]
[337604896,1725891042676,-1213.67,0.00014794,2]
[337604898,1725891042685,-500.0,0.00014794,2]
[337604900,1725891042694,-1213.67,0.00014794,2]
[337604902,1725891042704,-500.0,0.00014794,2]
[337604904,1725891042713,-1213.67,0.00014794,2]
[337604906,1725891042726,-1213.67,0.00014794,2]
[337604908,1725891042735,-500.0,0.00014794,2]
[337604910,1725891042745,-1213.67,0.00014794,2]
[337604913,1725891042755,-500.0,0.00014794,2]
[337604916,1725891042764,-388.1775871,0.00014794,2]
[337604919,1725891042774,-1213.67,0.00014794,2]
[337604921,1725891042783,-500.0,0.00014794,2]
[337604923,1725891042792,-1213.67,0.00014794,2]
[337604926,1725891042801,-500.0,0.00014794,2]
[337604929,1725891042810,-1213.67,0.00014794,2]
[337604932,1725891042820,-1213.67,0.00014794,2]
[337604934,1725891042829,-500.0,0.00014794,2]
[337604935,1725891042839,-1213.67,0.00014794,2]
[337604938,1725891042848,-295.09266908,0.00014794,2]
[337604941,1725891042857,-1213.67,0.00014794,2]
[337604945,1725891042867,-1370.5,0.00014794,2]
[337604949,1725891042876,-1213.67,0.00014794,2]
[337604951,1725891042885,-1370.5,0.00014794,2]
[337604953,1725891042895,-1213.67,0.00014794,2]
[337604955,1725891042904,-1370.5,0.00014794,2]
[337604957,1725891042913,-1370.5,0.00014794,2]
[337604959,1725891042922,-1370.5,0.00014794,2]
[337604961,1725891042932,-1370.5,0.00014794,2]
[337604963,1725891042941,-1370.5,0.00014794,2]
[337604965,1725891042950,-1370.5,0.00014794,2]
[337604967,1725891042959,-1370.5,0.00014794,2]
[337604969,1725891042968,-1370.5,0.00014794,2]
[337604971,1725891042979,-1370.5,0.00014794,2]
[337604973,1725891042988,-1370.5,0.00014794,2]
[337604975,1725891042997,-1370.5,0.00014794,2]
[337604977,1725891043006,-1370.5,0.00014794,2]
[337604979,1725891043015,-1213.67,0.00014794,2]
[337604981,1725891043025,-1370.5,0.00014794,2]
[337604982,1725891043034,-1370.5,0.00014794,2]
[337604984,1725891043043,-1213.67,0.00014794,2]
[337604986,1725891043052,-1213.67,0.00014794,2]
[337604988,1725891043063,-1370.5,0.00014794,2]
[337604990,1725891043072,-1213.67,0.00014794,2]
[337604992,1725891043081,-1370.5,0.00014794,2]
[337604994,1725891043091,-1213.67,0.00014794,2]
[337604996,1725891043101,-1370.5,0.00014794,2]
[337604998,1725891043110,-1213.67,0.00014794,2]
[337605000,1725891043120,-1370.5,0.00014794,2]
[337605002,1725891043130,-1213.67,0.00014794,2]
[337605004,1725891043140,-1370.5,0.00014794,2]
[337605006,1725891043149,-1213.67,0.00014794,2]
[337605008,1725891043159,-1370.5,0.00014794,2]
[337605010,1725891043168,-1213.67,0.00014794,2]
[337605012,1725891043177,-1370.5,0.00014794,2]
[337605014,1725891043187,-1213.67,0.00014794,2]
[337605016,1725891043196,-1370.6272514,0.00014794,2]
[337605018,1725891043206,-1213.78994203,0.00014794,2]
[337605020,1725891043214,-898.93,0.00014794,2]
[337605022,1725891043224,-898.93,0.00014794,2]
[337605024,1725891043235,-898.93,0.00014794,2]
[337605026,1725891043243,-898.93,0.00014794,2]
[337605028,1725891043253,-898.93,0.00014794,2]
[337605030,1725891043262,-898.93,0.00014794,2]
[337605032,1725891043271,-898.93,0.00014794,2]
[337605034,1725891043280,-898.93,0.00014794,2]
[337605036,1725891043289,-898.93,0.00014794,2]
[337605037,1725891043298,-898.93,0.00014794,2]
[337605039,1725891043307,-898.93,0.00014794,2]
[337605041,1725891043316,-2120.45,0.00014794,2]
[337605043,1725891043325,-898.93,0.00014794,2]
[337605045,1725891043334,-2120.45,0.00014794,2]
[337605047,1725891043343,-898.93,0.00014794,2]
[337605049,1725891043353,-2120.45,0.00014794,2]
[337605051,1725891043362,-898.93,0.00014794,2]
[337605052,1725891043371,-2120.45,0.00014794,2]
[337605053,1725891043380,-898.93,0.00014794,2]
[337605054,1725891043389,-2120.45,0.00014794,2]
[337605055,1725891043398,-898.93,0.00014794,2]
[337605056,1725891043408,-2120.45,0.00014794,2]
[337605057,1725891043417,-500.0,0.00014794,2]
[337605058,1725891043426,-898.93,0.00014794,2]
[337605059,1725891043435,-2120.45,0.00014794,2]
[337605060,1725891043444,-500.0,0.00014794,2]
[337605061,1725891043454,-2120.45,0.00014794,2]
[337605062,1725891043463,-898.93,0.00014794,2]
[337605063,1725891043476,-2120.45,0.00014794,2]
[337605064,1725891043486,-898.93,0.00014794,2]
[337605065,1725891043496,-500.0,0.00014794,2]
[337605066,1725891043505,-2120.45,0.00014794,2]
[337605067,1725891043515,-898.93,0.00014794,2]
[337605069,1725891043524,-500.0,0.00014794,2]
[337605071,1725891043534,-2120.45,0.00014794,2]
[337605073,1725891043543,-500.0,0.00014794,2]
[337605075,1725891043554,-898.93,0.00014794,2]
[337605076,1725891043564,-500.0,0.00014794,2]
[337605078,1725891043574,-500.0,0.00014794,2]
[337605080,1725891043583,-2120.45,0.00014794,2]
[337605082,1725891043593,-898.93,0.00014794,2]
[337605084,1725891043602,-500.0,0.00014794,2]
[337605086,1725891043612,-500.0,0.00014794,2]
[337605088,1725891043621,-2120.45,0.00014794,2]
[337605090,1725891043631,-898.93,0.00014794,2]
[337605092,1725891043641,-500.0,0.00014794,2]
[337605094,1725891043650,-2120.45,0.00014794,2]
[337605096,1725891043659,-899.15962964,0.00014794,2]
[337605098,1725891043667,-500.0,0.00014794,2]
[337605100,1725891043676,-500.0,0.00014794,2]
[337605101,1725891043686,-2120.45,0.00014794,2]
[337605103,1725891043695,-500.0,0.00014794,2]
[337605105,1725891043704,-500.0,0.00014794,2]